fUST/lending_fUST_20250313
["ID","MTS","AMOUNT","RATE_DAILY","PERIOD"]
[356031582,1741809043933,-500.0,0.00021917,2]
[356031583,1741809043943,-500.0,0.00021917,2]
[356031585,1741809043954,-659.73,0.00021917,2]
[356031587,1741809043963,-4017.16,0.00021917,2]
[356031589,1741809043974,-500.0,0.00021917,2]
[356031590,1741809043983,-707.42,0.00021917,2]
[356031591,1741809043994,-500.0,0.00021917,2]
[356031592,1741809044003,-2056.84,0.00021917,2]
[356031593,1741809044012,-305.27899074,0.00021917,2]
[356031594,1741809044022,-160.568377,0.00021917,2]
[356031595,1741809044031,-500.0,0.00021917,2]
[356031596,1741809044041,-500.0,0.00021917,2]
[356031597,1741809044050,-151.0,0.00021917,2]
[356031598,1741809044059,-500.0,0.00021917,2]
[356031599,1741809044070,-500.0,0.00021917,2]
[356031600,1741809044083,-831.29,0.00021917,2]
[356031601,1741809044092,-602.64338301,0.00021917,2]
[356031602,1741809044102,-500.0,0.00021917,2]
[356031603,1741809044111,-1675.01,0.00021917,2]
[356031604,1741809044122,-2757.77,0.00021917,2]
[356031605,1741809044323,-500.0,0.00021917,2]
[356031606,1741809044333,-500.0,0.00021917,2]
[356031607,1741809044342,-500.0,0.00021917,2]
[356031608,1741809044351,-500.0,0.00021917,2]
[356031609,1741809044360,-2794.14,0.00021917,2]
[356031610,1741809044370,-500.0,0.00021917,2]
[356031611,1741809044379,-542.49,0.00021917,2]
[356031612,1741809044388,-500.0,0.00021917,2]
[356031613,1741809044398,-151.0,0.00021917,2]
[356031614,1741809044407,-500.0,0.00021917,2]
[356031615,1741809044416,-831.75,0.00021917,2]
[356031616,1741809044426,-673.09,0.00021917,2]
[356031617,1741809044435,-500.0,0.00021917,2]
[356031618,1741809044445,-151.0,0.00021917,2]
[356031619,1741809044455,-500.0,0.00021917,2]
[356031620,1741809044464,-500.0,0.00021917,2]
[356031621,1741809044473,-500.0,0.00021917,2]
[356031622,1741809044482,-584.68,0.00021917,2]
[356031623,1741809044492,-1065.45,0.00021917,2]
[356031624,1741809044501,-519.77981328,0.00021917,2]
[356031625,1741809044510,-500.0,0.00021917,2]
[356031626,1741809044519,-500.0,0.00021917,2]
[356031627,1741809044529,-151.0,0.00021917,2]
[356031628,1741809044538,-3082.95,0.00021917,2]
[356031629,1741809044547,-582.43,0.00021917,2]
[356031630,1741809044557,-500.0,0.00021917,2]
[356031631,1741809044566,-17841.71,0.00021917,2]
[356031632,1741809044576,-500.0,0.00021917,2]
[356031633,1741809044585,-500.0,0.00021917,2]
[356031634,1741809044594,-500.0,0.00021917,2]
[356031635,1741809044604,-500.0,0.00021917,2]
[356031636,1741809044613,-1307.9,0.00021917,2]
[356031637,1741809044623,-500.0,0.00021917,2]
[356031638,1741809044632,-500.0,0.00021917,2]
[356031639,1741809044641,-151.0,0.00021917,2]
[356031640,1741809044650,-500.0,0.00021917,2]
[356031641,1741809044660,-500.0,0.00021917,2]
[356031642,1741809044669,-2321.42,0.00021917,2]
[356031644,1741809044679,-500.0,0.00021917,2]
[356031645,1741809044689,-591.64,0.00021917,2]
[356031647,1741809044699,-60698.39,0.00021917,2]
[356031649,1741809044708,-516.74929057,0.00021917,2]
[356031651,1741809044717,-500.0,0.00021917,2]
[356031653,1741809044726,-500.0,0.00021917,2]
[356031655,1741809044735,-151.0,0.00021917,2]
[356031657,1741809044744,-500.0,0.00021917,2]
[356031659,1741809044754,-500.0,0.00021917,2]
[356031661,1741809044763,-500.0,0.00021917,2]
[356031663,1741809044773,-500.0,0.00021917,2]
[356031666,1741809044783,-500.0,0.00021917,2]
[356031668,1741809044792,-500.0,0.00021917,2]
[356031670,1741809044801,-520.06302295,0.00021917,2]
[356031672,1741809044811,-388.013246,0.00021917,2]
[356031674,1741809044821,-697.84,0.00021917,2]
[356031676,1741809044829,-513.8267618,0.00021917,2]
[356031678,1741809044839,-500.0,0.00021917,2]
[356031680,1741809044848,-500.0,0.00021917,2]
[356031682,1741809044857,-847.83,0.00021917,2]
[356031684,1741809044866,-6562.73,0.00021917,2]
[356031686,1741809044875,-6562.73,0.00021917,2]
[356031688,1741809044884,-6562.73,0.00021917,2]
[356031690,1741809044893,-500.0,0.00021917,2]
[356031692,1741809044902,-6562.73,0.00021917,2]
[356031694,1741809044912,-6562.73,0.00021917,2]
[356031696,1741809044922,-388.013246,0.00021917,2]
[356031698,1741809044931,-6562.73,0.00021917,2]
[356031700,1741809044940,-6562.73,0.00021917,2]
[356031702,1741809044950,-6562.73,0.00021917,2]
[356031704,1741809044959,-6562.73,0.00021917,2]
[356031706,1741809044969,-6562.73,0.00021917,2]
[356031708,1741809044978,-6562.73,0.00021917,2]
[356031710,1741809044987,-6562.73,0.00021917,2]
[356031712,1741809044997,-6562.73,0.00021917,2]
[356031714,1741809045006,-6562.73,0.00021917,2]
[356031716,1741809045016,-500.0,0.00021917,2]
[356031718,1741809045025,-6562.73,0.00021917,2]
[356031720,1741809045034,-6562.73,0.00021917,2]
[356031721,1741809045044,-6562.73,0.00021917,2]
[356031723,1741809045053,-6562.73,0.00021917,2]
[356031725,1741809045062,-6562.73,0.00021917,2]
[356031728,1741809045076,-6562.73,0.00021917,2]
[356031730,1741809045086,-200.0,0.00021917,2]
[356031732,1741809045095,-595.51670173,0.00021917,2]
[356031734,1741809045104,-6562.73,0.00021917,2]
[356031736,1741809045114,-2676.65,0.00021917,2]
[356031738,1741809045123,-6562.73,0.00021917,2]
[356031740,1741809045133,-6562.73,0.00021917,2]
[356031742,1741809045142,-6562.96454206,0.00021917,2]
[356031743,1741809045152,-2327.8,0.00021917,2]
[356031745,1741809045161,-500.0,0.00021917,2]
[356031747,1741809045170,-500.0,0.00021917,2]
[356031749,1741809045179,-500.0,0.00021917,2]
[356031751,1741809045188,-737.21,0.00021917,2]
[356031753,1741809045199,-500.0,0.00021917,2]
[356031756,1741809045208,-500.0,0.00021917,2]
[356031758,1741809045218,-506.05569522,0.00021917,2]
[356031759,1741809045227,-500.0,0.00021917,2]
[356031761,1741809045236,-7409.68,0.00021917,2]
[356031763,1741809045245,-500.0,0.00021917,2]
[356031765,1741809045254,-220.152077,0.00021917,2]
[356031767,1741809045263,-329.453428,0.00021917,2]
[356031769,1741809045273,-331.40443024,0.00021917,2]
[356031771,1741809045283,-500.0,0.00021917,2]
[356031773,1741809045293,-1000.0,0.00021917,7]
[356031776,1741809045304,-500.0,0.00021917,2]
[356031778,1741809045313,-1167.95,0.00021917,2]
[356031780,1741809045322,-220.152077,0.00021917,2]
[356031782,1741809045331,-329.453428,0.00021917,2]
[356031784,1741809045340,-500.0,0.00021917,2]
[356031786,1741809045349,-778.01,0.00021917,2]
[356031788,1741809045358,-500.0,0.00021917,2]
[356031790,1741809045367,-500.0,0.00021917,2]
[356031792,1741809045377,-500.0,0.00021917,2]
[356031793,1741809045385,-500.0,0.00021917,2]
[356031794,1741809045394,-500.0,0.00021917,2]
[356031795,1741809045403,-500.0,0.00021917,2]
[356031796,1741809045412,-500.0,0.00021917,2]
[356031797,1741809045421,-500.0,0.00021917,2]
[356031798,1741809045431,-500.0,0.00021917,2]
[356031799,1741809045440,-986.1,0.00021917,2]
[356031800,1741809045451,-160.31971926,0.00021917,2]
[356031801,1741809045460,-1084.33,0.00021917,2]
[356031802,1741809045470,-500.0,0.00021917,2]
[356031803,1741809045479,-500.0,0.00021917,2]
[356031804,1741809045488,-500.0,0.00021917,2]
[356031805,1741809045497,-5963.29,0.00021917,2]
[356031806,1741809045506,-500.0,0.00021917,2]
[356031807,1741809045515,-151.0,0.00021917,2]
[356031808,1741809045525,-11334.24,0.00021917,2]
[356031809,1741809045534,-3477.78,0.00021917,2]
[356031810,1741809045543,-500.0,0.00021917,2]
[356031811,1741809045554,-500.0,0.00021917,2]
[356031812,1741809045564,-353.751824,0.00021917,2]
[356031813,1741809045574,-500.0,0.00021917,2]
[356031814,1741809045583,-500.0,0.00021917,2]
[356031815,1741809045593,-500.0,0.00021917,2]
[356031816,1741809045603,-500.0,0.00021917,2]
[356031817,1741809045613,-353.751824,0.00021917,2]
[356031818,1741809045622,-500.0,0.00021917,2]
[356031819,1741809045632,-500.0,0.00021917,2]
[356031820,1741809045641,-500.0,0.00021917,2]
[356031821,1741809045651,-2040.4,0.00021917,2]
[356031822,1741809045661,-500.0,0.00021917,2]
[356031823,1741809045670,-968.41,0.00021917,2]
[356031824,1741809045679,-151.0,0.00021917,2]
[356031825,1741809045688,-500.0,0.00021917,2]
[356031826,1741809045698,-500.0,0.00021917,2]
[356031827,1741809045707,-500.0,0.00021917,2]
[356031828,1741809045716,-154.911454,0.00021917,2]
[356031829,1741809045725,-500.0,0.00021917,2]
[356031830,1741809045734,-151.0,0.00021917,2]
[356031831,1741809045743,-1660.26,0.00021917,2]
[356031832,1741809045752,-918.0,0.00021917,2]
[356031833,1741809045761,-500.0,0.00021917,2]
[356031834,1741809045771,-4605.81,0.00021917,2]
[356031835,1741809045780,-1340.29,0.00021917,2]
[356031836,1741809045790,-2234.82,0.00021917,2]
[356031837,1741809045799,-500.0,0.00021917,2]
[356031838,1741809045808,-525.48361196,0.00021917,2]
[356031839,1741809045817,-500.0,0.00021917,2]
[356031840,1741809045826,-501.02,0.00021917,2]
[356031841,1741809045835,-7057.65,0.00021917,2]
[356031842,1741809045844,-500.0,0.00021917,2]
[356031843,1741809045853,-500.0,0.00021917,2]
[356031844,1741809045862,-500.0,0.00021917,2]
[356031845,1741809045871,-500.0,0.00021917,2]
[356031846,1741809045881,-722.09,0.00021917,2]
[356031847,1741809045890,-500.0,0.00021917,2]
[356031848,1741809045900,-464.09170446,0.00021917,2]
[356031849,1741809045909,-1385.76,0.00021917,2]
[356031850,1741809045918,-1243.39,0.00021917,2]
[356031851,1741809045927,-500.0,0.00021917,2]
[356031852,1741809045936,-1145.86,0.00021917,2]
[356031853,1741809045945,-1411.1,0.00021917,2]
[356031855,1741809045955,-500.0,0.00021917,2]
[356031856,1741809045965,-500.0,0.00021917,2]
[356031858,1741809045975,-500.0,0.00021917,2]
[356031861,1741809045985,-500.0,0.00021917,2]
[356031863,1741809045994,-500.0,0.00021917,2]
[356031865,1741809046003,-292.490374,0.00021917,2]
[356031867,1741809046013,-500.0,0.00021917,2]
[356031869,1741809046022,-4633.170085,0.00021917,2]
[356031870,1741809046031,-634.96,0.00021917,2]
[356031872,1741809046041,-500.0,0.00021917,2]
[356031874,1741809046050,-500.0,0.00021917,2]
[356031876,1741809046059,-292.490374,0.00021917,2]
[356031878,1741809046070,-4633.170085,0.00021917,2]
[356031881,1741809046083,-500.0,0.00021917,2]
[356031883,1741809046093,-500.0,0.00021917,2]
[356031885,1741809046102,-2290.97,0.00021917,2]
[356031887,1741809046112,-500.0,0.00021917,2]
[356031889,1741809046122,-4862.11,0.00021917,2]
[356031891,1741809046131,-500.0,0.00021917,2]
[356031893,1741809046140,-500.0,0.00021917,2]
[356031895,1741809046152,-500.0,0.00021917,2]
[356031897,1741809046162,-500.0,0.00021917,2]
[356031899,1741809046171,-3071.24,0.00021917,2]
[356031901,1741809046180,-151.0,0.00021917,2]
[356031903,1741809046189,-152.076781,0.00021917,2]
[356031905,1741809046199,-500.0,0.00021917,2]
[356031907,1741809046208,-500.0,0.00021917,2]
[356031909,1741809046217,-514.82313136,0.00021917,2]
[356031911,1741809046227,-508.88319553,0.00021917,2]
[356031913,1741809046236,-500.0,0.00021917,2]
[356031915,1741809046245,-5996.55,0.00021917,2]
[356031917,1741809046254,-5996.55,0.00021917,2]
[356031919,1741809046264,-5996.55,0.00021917,2]
[356031921,1741809046273,-5996.55,0.00021917,2]
[356031923,1741809046283,-500.0,0.00021917,2]
[356031924,1741809046292,-5996.55,0.00021917,2]
[356031926,1741809046301,-151.0,0.00021917,2]
[356031927,1741809046310,-5996.55,0.00021917,2]
[356031929,1741809046319,-500.0,0.00021917,2]
[356031930,1741809046329,-5996.55,0.00021917,2]
[356031931,1741809046338,-5996.55,0.00021917,2]
[356031932,1741809046347,-499.2198666,0.00021917,2]
[356031933,1741809046357,-5996.55,0.00021917,2]
[356031934,1741809046366,-5996.55,0.00021917,2]
[356031935,1741809046376,-5996.55,0.00021917,2]
[356031936,1741809046386,-5996.55,0.00021917,2]
[356031937,1741809046395,-5996.55,0.00021917,2]
[356031938,1741809046405,-5996.55,0.00021917,2]
[356031939,1741809046414,-5996.55,0.00021917,2]
[356031940,1741809046424,-845.05,0.00021917,2]
[356031941,1741809046433,-5996.55,0.00021917,2]
[356031942,1741809046443,-5996.55,0.00021917,2]
[356031943,1741809046455,-5996.55,0.00021917,2]
[356031944,1741809046465,-5996.55,0.00021917,2]
[356031945,1741809046474,-151.0,0.00021917,2]
[356031946,1741809046483,-500.0,0.00021917,2]
[356031947,1741809046493,-5996.55,0.00021917,2]
[356031948,1741809046503,-151.0,0.00021917,2]
[356031949,1741809046513,-5996.55,0.00021917,2]
[356031950,1741809046522,-151.0,0.00021917,2]
[356031951,1741809046532,-5996.55,0.00021917,2]
[356031952,1741809046542,-5996.55,0.00021917,2]
[356031953,1741809046551,-5996.74871699,0.00021917,2]
[356031954,1741809046562,-3283.98,0.00021917,2]
[356031956,1741809046571,-500.0,0.00021917,2]
[356031958,1741809046580,-500.0,0.00021917,2]
[356031960,1741809046590,-500.0,0.00021917,2]
[356031962,1741809046599,-500.0,0.00021917,2]
[356031963,1741809046609,-500.0,0.00021917,2]
[356031964,1741809046618,-5064.97,0.00021917,2]
[356031965,1741809046628,-504.73056009,0.00021917,2]
[356031966,1741809046636,-151.0,0.00021917,2]
[356031967,1741809046645,-2456.6938365,0.00021918,2]
[356031968,1741809046654,-1293.8017276,0.00021918,7]
[356031969,1741809046664,-729.71021274,0.00021947,2]
[356031970,1741809046673,-622.2,0.00021959,2]
[356031971,1741809046682,-500.0,0.00021973,2]
[356031972,1741809046692,-157.54244789,0.00021973,2]
[356031973,1741809046702,-500.0,0.00021973,2]
[356031974,1741809046711,-500.23807446,0.00021973,2]
[356031975,1741809046721,-500.0,0.00021973,2]
[356031976,1741809046730,-160.45532847,0.00021973,2]
[356031977,1741809046740,-160.45323151,0.00021973,2]
[356031978,1741809046749,-500.0,0.00021973,2]
[356031979,1741809046759,-500.14221065,0.00021973,2]
[356031980,1741809046768,-160.46871374,0.00021973,2]
[356031981,1741809046777,-500.0,0.00021973,2]
[356031982,1741809046786,-503.43618055,0.00021973,2]
[356031983,1741809046795,-274.31055979,0.00021973,2]
[356031984,1741809046805,-500.0,0.00021973,2]
[356031985,1741809046813,-367.75358607,0.00021973,2]
[356031986,1741809046823,-500.0,0.00021973,2]
[356031987,1741809046833,-500.0,0.00021973,2]
[356031988,1741809046842,-304.29195938,0.00021973,2]
[356031989,1741809046851,-159.4490704,0.00021973,2]
[356031990,1741809046860,-206.18693964,0.00021973,2]
[356031991,1741809046870,-500.0,0.00021973,2]
[356031992,1741809046879,-500.79311889,0.00021973,2]
[356031993,1741809046888,-500.0,0.00021973,2]
[356031994,1741809046898,-160.4360721,0.00021973,2]
[356031995,1741809046907,-500.0,0.00021973,2]
[356031996,1741809046916,-500.0,0.00021973,2]
[356031997,1741809046925,-500.0,0.00021973,2]
[356031998,1741809046934,-500.79741057,0.00021973,2]
[356031999,1741809046944,-500.0,0.00021973,2]
[356032000,1741809046953,-500.0,0.00021973,2]
[356032001,1741809046962,-500.0,0.00021973,2]
[356032002,1741809046972,-500.0,0.00021973,2]
[356032003,1741809046982,-500.0,0.00021973,2]
[356032004,1741809046992,-500.40847955,0.00021973,2]
[356032005,1741809047001,-159.43520626,0.00021973,2]
[356032006,1741809047010,-253.34295931,0.00021973,2]
[356032007,1741809047019,-160.48537296,0.00021973,2]
[356032008,1741809047029,-332.08724457,0.00021973,2]
[356032009,1741809047038,-303.29956193,0.00021973,2]
[356032010,1741809047048,-160.0397721,0.00021973,2]
[356032011,1741809047058,-500.0,0.00021973,2]
[356032012,1741809047068,-500.0,0.00021973,2]
[356032013,1741809047084,-500.0,0.00021973,2]
[356032014,1741809047093,-375.85984233,0.00021973,2]
[356032015,1741809047102,-500.0,0.00021973,2]
[356032016,1741809047111,-160.43794313,0.00021973,2]
[356032017,1741809047121,-500.0,0.00021973,2]
[356032018,1741809047130,-500.0,0.00021973,2]
[356032019,1741809047139,-500.0,0.00021973,2]
[356032020,1741809047148,-510.54681435,0.00021973,2]
[356032021,1741809047159,-500.0,0.00021973,2]
[356032022,1741809047169,-151.61181444,0.00021973,2]
[356032023,1741809047178,-267.62678819,0.00021973,2]
[356032024,1741809047187,-500.0,0.00021973,2]
[356032025,1741809047196,-176.85535303,0.00021973,2]
[356032026,1741809047206,-500.0,0.00021973,2]
[356032027,1741809047215,-500.0,0.00021973,2]
[356032028,1741809047224,-500.0,0.00021973,2]
[356032029,1741809047233,-500.35366532,0.00021973,2]
[356032030,1741809047243,-500.0,0.00021973,2]
[356032031,1741809047252,-169.88853558,0.00021973,2]
[356032032,1741809047261,-404.7363472,0.00021973,2]
[356032033,1741809047271,-210.90733146,0.00021973,2]
[356032034,1741809047280,-500.0,0.00021973,2]
[356032035,1741809047289,-267.34800213,0.00021973,2]
[356032036,1741809047298,-500.0,0.00021973,2]
[356032037,1741809047307,-159.59110693,0.00021973,2]
[356032038,1741809047316,-154.15072561,0.00021973,2]
[356032039,1741809047326,-500.0,0.00021973,2]
[356032040,1741809047335,-500.0,0.00021973,2]
[356032041,1741809047344,-501.51281935,0.00021973,2]
[356032042,1741809047353,-500.0,0.00021973,2]
[356032043,1741809047362,-500.0,0.00021973,2]
[356032044,1741809047372,-500.0,0.00021973,2]
[356032045,1741809047381,-500.0,0.00021973,2]
[356032046,1741809047391,-500.0,0.00021973,2]
[356032047,1741809047401,-500.0,0.00021973,2]
[356032048,1741809047410,-500.0,0.00021973,2]
[356032049,1741809047420,-155.80444395,0.00021973,2]
[356032050,1741809047429,-500.0,0.00021973,2]
[356032051,1741809047438,-500.0,0.00021973,2]
[356032052,1741809047448,-163.37783337,0.00021973,2]
[356032053,1741809047458,-500.23620417,0.00021973,2]
[356032054,1741809047467,-151.417655,0.00021973,7]
[356032055,1741809047476,-151.0,0.00021973,7]
[356032056,1741809047486,-151.0,0.00021973,7]
[356032057,1741809047495,-151.0,0.00021973,7]
[356032058,1741809047504,-220.152077,0.00021973,7]
[356032059,1741809047514,-329.453428,0.00021973,7]
[356032060,1741809047524,-220.152077,0.00021973,7]
[356032061,1741809047535,-329.453428,0.00021973,7]
[356032062,1741809047545,-151.0,0.00021973,7]
[356032063,1741809047555,-353.751824,0.00021973,7]
[356032064,1741809047564,-353.751824,0.00021973,7]
[356032065,1741809047573,-151.0,0.00021973,7]
[356032066,1741809047583,-151.0,0.00021973,7]
[356032067,1741809047592,-292.490374,0.00021973,7]
[356032068,1741809047601,-4633.170085,0.00021973,7]
[356032069,1741809047611,-292.490374,0.00021973,7]
[356032071,1741809047620,-4633.170085,0.00021973,7]
[356032073,1741809047629,-160.070529,0.00021973,7]
[356032074,1741809047639,-151.0,0.00021973,7]
[356032075,1741809047648,-151.0,0.00021973,7]
[356032077,1741809047657,-151.0,0.00021973,7]
[356032079,1741809047666,-399.99,0.00022,2]
[356032080,1741809047675,-800.0,0.00022,2]
[356032082,1741809047685,-151.0,0.00022,6]
[356032084,1741809047694,-151.0,0.00022,7]
[356032086,1741809047706,-151.0,0.00022,7]
[356032088,1741809047900,-393.0,0.00022,2]
[356032089,1741809047910,-151.0,0.00022,7]
[356032090,1741809047920,-220.089596,0.00022,7]
[356032091,1741809047930,-166.0,0.00022,2]
[356032092,1741809047940,-645.2214,0.00022014,2]
[356032093,1741809047951,-5132.5661978,0.00022015,2]
[356032094,1741809047961,-200.0,0.00022017,2]
[356032095,1741809047971,-832.779583,0.00022069,2]
[356032096,1741809047981,-3000.0,0.00022091,2]
[356032097,1741809047991,-151.0,0.000221,9]
[356032098,1741809048001,-151.0,0.000221,5]
[356032099,1741809048011,-151.0,0.000221,8]
[356032100,1741809048021,-500.43145444,0.00022163,2]
[356032101,1741809048031,-500.0,0.00022163,2]
[356032102,1741809048042,-500.0,0.00022173,2]
[356032103,1741809048051,-387.07891098,0.00022173,2]
[356032104,1741809048061,-500.0,0.00022173,2]
[356032105,1741809048071,-500.0,0.00022173,2]
[356032106,1741809048085,-554.78706975,0.00022173,2]
[356032107,1741809048095,-500.0,0.00022173,2]
[356032108,1741809048105,-500.0,0.00022173,2]
[356032109,1741809048115,-500.0,0.00022173,2]
[356032110,1741809048125,-500.0,0.00022173,2]
[356032111,1741809048134,-548.86546505,0.00022173,2]
[356032112,1741809048144,-500.0,0.00022173,2]
[356032113,1741809048154,-500.0,0.00022173,2]
[356032114,1741809048163,-225.92834623,0.00022173,2]
[356032115,1741809048173,-500.0,0.00022173,2]
[356032116,1741809048182,-500.0,0.00022173,2]
[356032117,1741809048191,-500.0,0.00022173,2]
[356032118,1741809048201,-500.0,0.00022173,2]
[356032119,1741809048211,-500.0,0.00022173,2]
[356032120,1741809048220,-500.0,0.00022173,2]
[356032121,1741809048231,-500.0,0.00022173,2]
[356032122,1741809048240,-485.33174382,0.00022173,2]
[356032123,1741809048250,-230.31197625,0.00022173,2]
[356032124,1741809048259,-300.0,0.00022173,2]
[356032125,1741809048268,-315.14321334,0.00022173,2]
[356032126,1741809048278,-166.97971497,0.00022173,2]
[356032127,1741809048287,-500.0,0.00022173,2]
[356032128,1741809048296,-500.0,0.00022173,2]
[356032129,1741809048306,-500.0,0.00022173,2]
[356032130,1741809048315,-500.0,0.00022173,2]
[356032131,1741809048324,-500.0,0.00022173,2]
[356032132,1741809048333,-500.0,0.00022173,2]
[356032133,1741809048343,-500.0,0.00022173,2]
[356032134,1741809048352,-500.0,0.00022173,2]
[356032135,1741809048362,-500.0,0.00022173,2]
[356032136,1741809048372,-500.0,0.00022173,2]
[356032137,1741809048382,-200.009412,0.00022173,2]
[356032138,1741809048391,-501.26208016,0.00022173,2]
[356032139,1741809048401,-500.0,0.00022173,2]
[356032140,1741809048411,-313.62809527,0.00022173,2]
[356032141,1741809048420,-500.0,0.00022173,2]
[356032142,1741809048430,-500.0,0.00022173,2]
[356032143,1741809048439,-500.0,0.00022173,2]
[356032144,1741809048449,-603.1910099,0.00022173,2]
[356032145,1741809048458,-500.0,0.00022173,2]
[356032146,1741809048467,-500.0,0.00022173,2]
[356032147,1741809048477,-500.0,0.00022173,2]
[356032148,1741809048486,-500.0,0.00022173,2]
[356032149,1741809048496,-500.0,0.00022173,2]
[356032150,1741809048506,-506.25661435,0.00022173,2]
[356032151,1741809048516,-371.84928285,0.00022173,2]
[356032152,1741809048525,-189.8435304,0.00022173,2]
[356032153,1741809048535,-392.18404094,0.00022173,2]
[356032154,1741809048545,-500.0,0.00022173,2]
[356032155,1741809048555,-500.0,0.00022173,2]
[356032156,1741809048564,-500.0,0.00022173,2]
[356032157,1741809048573,-612.48701335,0.00022173,2]
[356032158,1741809048583,-500.0,0.00022173,2]
[356032159,1741809048593,-161.87639361,0.00022173,2]
[356032160,1741809048603,-416.75644841,0.00022173,2]
[356032161,1741809048612,-500.0,0.00022173,2]
[356032162,1741809048622,-500.0,0.00022173,2]
[356032163,1741809048631,-500.0,0.00022173,2]
[356032164,1741809048641,-500.0,0.00022173,2]
[356032165,1741809048650,-500.0,0.00022173,2]
[356032166,1741809048659,-151.0,0.00022173,7]
[356032167,1741809048669,-151.0,0.00022173,7]
[356032168,1741809048679,-151.0,0.00022173,7]
[356032169,1741809048688,-2854.903074,0.00022173,7]
[356032170,1741809048697,-2854.903074,0.00022173,7]
[356032171,1741809048707,-717.98336,0.00022173,7]
[356032172,1741809048717,-151.0,0.00022173,7]
[356032173,1741809048726,-160.0,0.00022173,7]
[356032174,1741809048735,-151.0,0.00022173,7]
[356032175,1741809048745,-151.0,0.00022173,7]
[356032176,1741809048754,-388.013246,0.00022173,7]
[356032177,1741809048764,-388.013246,0.00022173,7]
[356032178,1741809048773,-160.0,0.00022173,7]
[356032179,1741809048783,-161.402126,0.00022191,7]
[356032180,1741809048793,-611.56,0.00022191,2]
[356032181,1741809048803,-500.0,0.00022191,2]
[356032182,1741809048812,-500.0,0.00022191,2]
[356032183,1741809048821,-500.0,0.00022191,2]
[356032184,1741809048830,-500.0,0.00022191,2]
[356032185,1741809048839,-500.0,0.00022191,2]
[356032186,1741809048849,-500.0,0.00022191,2]
[356032187,1741809048859,-571.78,0.00022191,2]
[356032188,1741809048868,-823.03,0.00022191,2]
[356032189,1741809048877,-558.38852288,0.00022191,2]
[356032190,1741809048888,-500.0,0.00022191,2]
[356032191,1741809048897,-520.04526823,0.00022191,2]
[356032192,1741809048907,-500.0,0.00022191,2]
[356032193,1741809048916,-209.09023234,0.00022191,2]
[356032194,1741809048925,-500.0,0.00022191,2]
[356032195,1741809048935,-889.88,0.00022191,2]
[356032196,1741809048944,-358.60827403,0.00022191,2]
[356032197,1741809048955,-500.0,0.00022191,2]
[356032198,1741809048964,-500.0,0.00022191,2]
[356032199,1741809048974,-500.0,0.00022191,2]
[356032200,1741809048983,-500.0,0.00022191,2]
[356032201,1741809048993,-514.1262304,0.00022191,2]
[356032202,1741809049005,-1004.54,0.00022191,2]
[356032203,1741809049015,-500.0,0.00022191,2]
[356032204,1741809049024,-625.79,0.00022191,2]
[356032205,1741809049034,-500.0,0.00022191,2]
[356032206,1741809049044,-500.0,0.00022191,2]
[356032207,1741809049055,-500.0,0.00022191,2]
[356032208,1741809049064,-500.0,0.00022191,2]